{"text_format":"1","workbook":"xlsx","n_sheets":3,"sheets":["Sheet1","Sheet2","Sheet3"],"not_rendered":{"charts":0,"images":0,"macros":1,"external_links":0,"defined_names":1,"comments":0,"pivot_tables":0},"unopened":[],"bounds":{"document_bytes":16777216,"sheet_cells":100000,"rows_first":2000,"rows_last":500,"rows_between":2000,"halvings":0,"cell_chars":16384,"cell_head_chars":4096},"cells_cut":0,"cells_raw":0,"read":"whole","date_system":"1900"}

{"sheet":"Sheet1","index":0,"n_rows":94,"n_cols":13,"rows_kept":94,"cut":false,"hidden":false,"merged":[[76,5,76,6],[64,6,64,7],[62,6,62,7],[71,6,71,7],[70,6,70,7],[69,6,69,7],[67,6,67,7],[65,6,65,7],[68,5,69,5],[68,6,68,7],[75,5,75,6],[74,5,74,6],[13,4,26,4],[9,4,12,4],[16,5,18,5],[18,6,18,7],[17,6,17,7],[15,6,15,7],[22,5,26,5],[19,5,21,5],[13,5,15,5],[9,5,12,5],[21,6,21,7],[20,6,20,7],[19,6,19,7],[16,6,16,7],[14,6,14,7],[13,6,13,7],[11,6,11,7],[10,6,10,7],[9,6,9,7],[12,6,12,7],[1,10,1,11],[3,10,3,11],[2,10,2,11],[4,10,4,11],[5,10,5,11],[3,4,5,8],[1,0,2,8],[27,6,27,7],[26,6,26,7],[22,6,22,7],[24,6,24,7],[38,6,38,7],[31,6,31,7],[29,6,29,7],[28,6,28,7],[25,6,25,7],[23,6,23,7],[37,6,37,7],[36,6,36,7],[35,6,35,7],[32,6,32,7],[30,6,30,7],[33,6,33,7],[58,6,58,7],[52,6,52,7],[53,6,53,7],[57,6,57,7],[56,6,56,7],[55,6,55,7],[54,6,54,7],[60,6,60,7],[59,6,59,7],[61,6,61,7],[65,4,71,4],[70,5,71,5],[65,5,66,5],[63,6,63,7],[66,6,66,7],[36,5,38,5],[62,5,64,5],[54,5,61,5],[47,4,64,4],[47,5,53,5],[27,4,46,4],[27,5,35,5],[39,5,43,5],[44,5,46,5],[51,6,51,7],[34,6,34,7],[50,6,50,7],[39,6,39,7],[41,6,41,7],[43,6,43,7],[42,6,42,7],[40,6,40,7],[49,6,49,7],[48,6,48,7],[47,6,47,7],[44,6,44,7],[45,6,45,7],[46,6,46,7]]}
[]
["Mobility Review Checklist",null,null,null,null,null,null,null,null,null,"Plan Name:"]
[null,null,null,null,null,null,null,null,null,null,"Review Number:"]
[null,null,null,null,"This spreadsheet checklist should be used with the accompanying user guide, Checklist for Reviewing Mobility Measures. It contains important guidance on the meaning of selected criteria in the checklist and must be consulted in concert with the checklist during the review and assessment process. Keep in mind that this is a proposed practice and not an official procedure.",null,null,null,null,null,"Jurisdiction:"]
[null,null,null,null,null,null,null,null,null,null,"Date of Review:"]
[]
[]
[]
["DULA/TCEA \"Mobility\" Plan","SIS Mitigation Plan","Corridor Plan",null,"Category","Elements",null,"Criteria Code","Criteria","Addressed","Not Addressed","Not Applicable","Comments"]
[null,null,null,null,"Supporting Plans and Guidelines\n- SP -","State, Regional, Local\n- SP1 -","SP1.1",null,"Supports the Florida Transportation Plan, the Strategic Intermodal System Plan, and other applicable state plans and guidelines."]
[null,null,null,null,null,null,"SP1.2",null,"Consistent with adopted regional mobility plan or vision, such as that established through a regional collaborative, including the MPO Long Range Transportation Plan and adopted Transit Development Plan (TDP)."]
[null,null,null,null,null,null,"SP1.3",null,"Coordinates with transportation, corridor management, and mobility plans of adjacent local governments and transportation planning agencies."]
[null,null,null,null,null,null,"SP1.4",null,"Consistent with local government comprehensive plan objectives and policies as well as specialized plans."]
[null,null,null,null,"Multimodal Environment\n- ME -","Organization & Location\n- ME1 -","ME1.1",null,"Designates and reinforces strong urban core(s) and urban activity centers of varying sizes and compositions."]
[null,null,null,null,null,null,"ME1.2",null,"Transit-compatible land uses are defined and required to locate on existing or planned transit corridors with direct access to transit. This should include but is not limited to transit-oriented developments (TOD)."]
[null,null,null,null,null,null,"ME1.3",null,"Ensures that industrial and other freight-related uses locate in proximity to and have direct access to major transportation routes and intermodal stations or other freight transfer locations."]
[null,null,null,null,null,"Mix\n- ME2 -","ME2.1",null,"Provides for a complementary mix of retail, services, residential, institutional, cultural, recreational, and employment opportunities  within urban cores and major activity centers. "]
[null,null,null,null,null,null,"ME2.2",null,"Provides for a vertical mix of uses within urban cores and major activity centers to encourage active uses at the street level. "]
[null,null,null,null,null,null,"ME2.3",null,"Provides for compatible food, education, retail and service uses on a neighborhood level within or in close proximity to residential areas."]
[null,null,null,null,null,"Density and Intensity\n- ME3 -","ME3.1",null,"Establishes minimum density and intensity requirements for urban core and major activity center areas. "]
[null,null,null,null,null,null,"ME3.2",null,"Establishes appropriate densities and intensities within walking distance of transit stops."]
[null,null,null,null,null,null,"ME3.3",null,"Establishes urban design criteria for urban cores and major activity centers to preserve or improve livability."]
[null,null,null,null,null,"Multimodal Policy\n- ME4 -","ME4.1",null,"Establishes priority on enhancing bicycle and pedestrian mobility within existing and proposed activity centers, including urban core areas."]
[null,null,null,null,null,null,"ME4.2",null,"Includes automobile parking management strategies for urban cores, activity centers and transit corridors to reduce surface area parking and promote non-automobile travel."]
[null,null,null,null,null,null,"ME4.3",null,"Provides for, and requires new development to contribute to, pedestrian-friendly amenities on the public streetscape. "]
[null,null,null,null,null,null,"ME4.4",null,"Provides for, and requires new development to contribute to, amenities at existing and proposed transit stations and stops including covered shelters, trash receptacles, benches, landing pads, lighting, and bicycle parking."]
[null,null,null,null,null,null,"ME4.5",null,"Transportation impact assessment procedures are in place that address development impacts on all modes of transportation and minimize vehicular, transit, bicycle, and pedestrian conflicts."]
[null,null,null,null,"Network Improvement \n- NI -","Major Roadway Network\n- NI1 -","NI1.1",null,"Transportation corridors requiring additional right of way and/or corridor management  are designated for preservation and management as provided in §337.273, F.S."]
[null,null,null,null,null,null,"NI1.2",null,"Includes transportation corridor management policies to preserve right-of-way needed for all transportation modes and provides for dedication of land or conveyance of easements to local governments for planned transportation projects as provided in §337.273(6), F.S."]
[null,null,null,null,null,null,"NI1.3",null,"Provides for construction of parallel relievers or service roads along major highway corridors or within interstate interchange quadrants."]
[null,null,null,null,null,null,"NI1.4",null,"Provides for construction of new interstate highway overpass crossings to connect local street networks."]
[null,null,null,null,null,null,"NI1.5",null,"Includes grade separated intersections. "]
[null,null,null,null,null,null,"NI1.6",null,"Provides for construction of additional travel lanes and/or turn lanes to address existing or anticipated motor vehicle traffic volume where appropriate."]
[null,null,null,null,null,null,"NI1.7",null,"Includes new arterial or major collector roadways to relieve motor vehicle traffic congestion and increase network connectivity."]
[null,null,null,null,null,null,"NI1.8",null,"Includes design elements to increase bicycle and pedestrian safety and mobility. "]
[null,null,null,null,null,null,"NI1.9",null,"Includes network enhancements and design elements in support of managed lanes."]
[null,null,null,null,null,"Local Street Network\n- NI2 -","NI2.1",null,"Includes network-enhancing local and minor collector street projects."]
[null,null,null,null,null,null,"NI2.2",null,"Promotes direct connections between activity centers and surrounding residential areas."]
[null,null,null,null,null,null,"NI2.3",null,"Includes policies and strategies to increase street network connectivity."]
[null,null,null,null,null,"Bicycle and Pedestrian Network\n- NI3 -","NI3.1",null,"Requires bicycle lanes and sidewalks of appropriate width on or near all new or reconstructed major collector and arterial routes where appropriate."]
[null,null,null,null,null,null,"NI3.2",null,"Includes planned projects to address bicycle and pedestrian network connectivity."]
[null,null,null,null,null,null,"NI3.3",null,"Addresses the continuation of, or establishes new, shared use paths."]
[null,null,null,null,null,null,"NI3.4",null,"Requires new development to maintain continuous pedestrian networks, including connections to transit stops, adjacent lots, and between building entrances and the internal and external sidewalk network."]
[null,null,null,null,null,null,"NI3.5",null,"Requires new development to maintain continuous bicycle networks, including connections to transit stops and adjacent properties, and to provide bicycle parking at all non-residential uses, multi-family uses and other key destinations."]
[null,null,null,null,null,"Transit Network\n- NI4 -","NI4.1",null,"Addresses statewide and regional transit traveling through or with endpoints within plan boundaries."]
[null,null,null,null,null,null,"NI4.2",null,"Addresses express transit service."]
[null,null,null,null,null,null,"NI4.3",null,"Addresses existing and planned local transit within plan boundaries, including route locations, headways and instrastructure."]
[null,null,null,null,"Operations and Safety\n- OS -","Demand Management\n- OS1 -","OS1.1",null,"Provides for high quality transit service and/or managed lanes."]
[null,null,null,null,null,null,"OS1.2",null,"Incorporates intelligent transportation systems (ITS) strategies."]
[null,null,null,null,null,null,"OS1.3",null,"Establishes institutional strategies (e.g. TDM programs)."]
[null,null,null,null,null,null,"OS1.4",null,"Establishes commuter financial incentives."]
[null,null,null,null,null,null,"OS1.5",null,"Provides infrastructure designed to encourage alternatives to single occupant vehicle travel."]
[null,null,null,null,null,null,"OS1.6",null,"Establishes pricing strategies."]
[null,null,null,null,null,null,"OS1.7",null,"Provides for safer travel for all modes."]
[null,null,null,null,null,"Access Management\n- OS2 -","OS2.1",null,"Includes policies and strategies to provide alternative access to development on arterial roadways."]
[null,null,null,null,null,null,"OS2.2",null,"Includes policies and strategies to close excessive or unsafe driveway connections or to redesign overly-wide or poorly designed connections."]
[null,null,null,null,null,null,"OS2.3",null,"Includes policies and strategies to replace continuous two-way left turn lanes with medians on multi-lane arterials."]
[null,null,null,null,null,null,"OS2.4",null,"Requires conformance of new signals with signal coordination plans and FDOT signal spacing standards for the state highway system."]
[null,null,null,null,null,null,"OS2.5",null,"Restricts access in the functional area of freeway interchanges."]
[null,null,null,null,null,null,"OS2.6",null,"Restricts access in the functional area of roadway intersections."]
[null,null,null,null,null,null,"OS2.7",null,"Requires adequate, uninterrupted throat length for driveways and frontage roads that connect to arterial roadways."]
[null,null,null,null,null,null,"OS2.8",null,"Includes measures to close or redesign inadequately designed median openings."]
[null,null,null,null,null,"Ped and Bicycle Operations and Safety\n- OS3 -","OS3.1",null,"Includes measures to increase pedestrian safety at intersections and mid-block crossings, and while walking along the road."]
[null,null,null,null,null,null,"OS3.2",null,"Includes measures to increase bicycle safety."]
[null,null,null,null,null,null,"OS3.3",null,"Includes measures to provide safe routes to schools."]
[null,null,null,null,"Implementation\n- IM -","Coordination\n- IM1 -","IM1.1",null,"Includes strategies to forge partnerships and effectively coordinate with modal providers, state and regional agencies, and other local governments in mobility planning and project development."]
[null,null,null,null,null,null,"IM1.2",null,"Includes policies and strategies to coordinate with FDOT in access management and permitting on the state highway system."]
[null,null,null,null,null,"Incentives\n- IM2 -","IM2.1",null,"Provides incentives to achieve the desired results."]
[null,null,null,null,null,"Monitoring\n- IM3 -","IM3.1",null,"Includes policies for adoption of regulations, including design criteria, into appropriate land development regulations by a specified date."]
[null,null,null,null,null,null,"IM3.2",null,"Includes a performance measurement system."]
[null,null,null,null,null,"Funding\n- IM4 -","IM4.1",null,"Capital improvement program addresses all modes of transportation."]
[null,null,null,null,null,null,"IM4.2",null,"Clearly identifies committed and anticipated funding sources for the capital improvement program and reasonably anticipated funding for future years."]
[]
[null,null,null,null,null,null,null,null,"Supporting Plans and Guidelines  ",{"$f":"(COUNTA(J10:J13))","v":0},{"$f":"COUNTA(K10:K13)","v":0},{"$f":"COUNTA(L10:L13)","v":0}]
[null,null,null,null,null,null,null,null,"Multimodal Environment",{"$f":"COUNTA(J14:J27)","v":0},{"$f":"COUNTA(K14:K27)","v":0},{"$f":"COUNTA(L14:L27)","v":0}]
[null,null,null,null,null,null,null,null,"Network Improvement ",{"$f":"COUNTA(J28:J47)","v":0},{"$f":"COUNTA(K28:K47)","v":0},{"$f":"COUNTA(L28:L47)","v":0}]
[null,null,null,null,null,null,null,null,"Operations and Safety",{"$f":"COUNTA(J48:J65)","v":0},{"$f":"COUNTA(K48:K65)","v":0},{"$f":"COUNTA(L48:L65)","v":0}]
[null,null,null,null,null,null,null,null,"Implementation",{"$f":"COUNTA(J66:J72)","v":0},{"$f":"COUNTA(K66:K72)","v":0},{"$f":"COUNTA(L66:L72)","v":0}]
[null,null,null,null,null,null,null,null,"Total",{"$f":"SUM(J74:J78)","v":0},{"$f":"SUM(K74:K78)","v":0},0]
[]
[]
[]
[]
[null,null,null,null,{"$f":"COUNT(J10:J72)","v":0}]
[]
[]
[]
[null,null,null,null,null,null,null,null,null,{"$f":"IF(K74<=0.5,0,1)","v":0}]
[null,null,null,null,null,null,null,null,null,{"$f":"IF(K75<=0.5,0,1)","v":0},{"$f":"J88*J89*J90*J91*J92*J93","v":0}]
[null,null,null,null,null,null,null,null,null,0]
[null,null,null,null,null,null,null,null,null,0]
[null,null,null,null,null,null,null,null,null,0]
[null,null,null,null,null,null,null,null,null,0]
[null,null,null,null,null,null,null,null,null,{"$f":"K89+K79","v":0}]

{"sheet":"Sheet2","index":1,"n_rows":0,"n_cols":0,"rows_kept":0,"cut":false,"hidden":false,"merged":[]}

{"sheet":"Sheet3","index":2,"n_rows":0,"n_cols":0,"rows_kept":0,"cut":false,"hidden":false,"merged":[]}